bitfinex-derivatives/quotes_BTCF0:USTF0_20210109
["timestamp","ask_amount","ask_price","bid_price","bid_amount"]
[1610172790442,0.37069556,39573.0,39572.0,0.13632608]
[1610172790742,0.107643,39574.0,39572.0,0.13632608]
[1610172790941,0.08823,39584.0,39572.0,0.13632608]
[1610172791142,0.07643,39584.0,39572.0,0.13478175]
[1610172791342,0.2723,39593.0,39572.0,0.13478175]
[1610172791545,0.54149265,39585.0,39572.0,0.13478175]
[1610172791942,0.54144372,39586.0,39572.0,0.13478175]
[1610172792346,0.13632608,39577.0,39576.0,0.13632608]
[1610172792744,0.23695608,39577.0,39550.0,4.2105]
[1610172794345,0.10063,39577.0,39568.0,0.13632608]
[1610172794748,0.64128633,39577.0,39568.0,0.13632608]
[1610172795146,0.64128633,39577.0,39550.0,4.2105]
[1610172795349,0.64128633,39577.0,39523.0,0.10323]
[1610172795547,0.64128633,39577.0,39527.0,4.1482]
[1610172795948,0.10063,39577.0,39527.0,4.1482]
[1610172796348,0.54045433,39574.0,39564.0,0.13632608]
[1610172796754,0.01515174,39575.0,39564.0,0.13632608]
[1610172797050,0.01515204,39576.0,39564.0,0.13632608]
[1610172797651,0.00365204,39576.0,39564.0,0.13632608]
[1610172797851,0.91076626,39575.0,39564.0,0.13632608]
[1610172798250,0.54004666,39574.0,39564.0,0.13632608]
[1610172798449,0.13632608,39565.0,39564.0,0.13632608]
[1610172798650,0.08599,39565.0,39564.0,0.13632608]
[1610172800354,0.22231608,39565.0,39555.0,0.13632608]
[1610172800553,0.21041608,39565.0,39523.0,0.08259]
[1610172800754,0.21041608,39565.0,39519.0,3.5324]
[1610172801353,0.2945,39564.0,39519.0,3.5324]
[1610172801956,0.83433603,39564.0,39519.0,3.5324]
[1610172802353,0.83433603,39564.0,39550.0,0.13632608]
[1610172803054,0.83433603,39564.0,39519.0,3.5324]
[1610172803454,0.82273603,39564.0,39519.0,3.5324]
[1610172803653,0.54009222,39562.0,39519.0,3.5324]
[1610172803854,0.54009179,39561.0,39519.0,3.5324]
[1610172804255,0.54006187,39562.0,39519.0,3.5324]
[1610172804455,0.54006187,39562.0,39547.0,0.13632608]
[1610172804657,0.82312394,39564.0,39547.0,0.13632608]
[1610172805057,0.54023276,39562.0,39547.0,0.13632608]
[1610172805456,0.54043772,39561.0,39519.0,3.5324]
[1610172805956,0.54045667,39558.0,39519.0,3.5324]
[1610172806356,0.54065445,39557.0,39541.0,0.13632608]
[1610172806757,1.01506267,39557.0,39541.0,0.13632608]
[1610172807057,0.64418445,39557.0,39541.0,0.13632608]
[1610172807959,0.37088331,39556.0,39541.0,0.13632608]
[1610172808159,0.11613,39557.0,39541.0,0.13632608]
[1610172808359,0.13632608,39542.0,39541.0,0.13632608]
[1610172808959,0.10201,39548.0,39541.0,0.13632608]
[1610172809861,0.09041,39548.0,39541.0,0.13632608]
[1610172810460,0.13632608,39542.0,39541.0,0.13632608]
[1610172812764,0.09041,39548.0,39541.0,0.13632608]
[1610172812964,0.07851,39548.0,39541.0,0.13632608]
[1610172813567,0.11613,39557.0,39541.0,0.13632608]
[1610172813767,0.66299206,39561.0,39541.0,0.13632608]
[1610172814067,0.82746953,39565.0,39541.0,0.13632608]
[1610172814068,0.66330636,39560.0,39541.0,0.13632608]
[1610172814468,0.13632608,39542.0,39541.0,0.13632608]
[1610172815070,0.25354608,39542.0,39541.0,0.13632608]
[1610172815570,0.25354608,39542.0,39541.0,0.13478075]
[1610172815971,0.24204608,39542.0,39541.0,0.13478075]
[1610172817372,0.24204608,39542.0,39519.0,3.5324]
[1610172817580,0.24204608,39542.0,39491.0,0.2719]
[1610172817774,0.24204608,39542.0,39520.0,0.00022246]
[1610172818174,0.24204608,39542.0,39497.0,4.2447]
[1610172818373,0.24204608,39542.0,39521.0,0.00022246]
[1610172818573,0.11722,39542.0,39536.0,0.13632608]
[1610172818974,0.10522,39542.0,39536.0,0.13632608]
[1610172819375,0.10522,39542.0,39497.0,4.2447]
[1610172819576,0.45356356,39541.0,39497.0,4.2447]
[1610172819775,0.45387284,39541.0,39497.0,4.2447]
[1610172819976,0.45359218,39537.0,39498.0,0.0002225]
[1610172820376,0.45394396,39534.0,39498.0,0.0002225]
[1610172820577,0.56737396,39534.0,39520.0,0.13632608]
[1610172820779,0.45398205,39528.0,39520.0,0.13632608]
[1610172821377,0.45398205,39528.0,39497.0,4.2447]
[1610172821580,0.66576974,39533.0,39484.0,0.095]
[1610172821581,0.45428075,39526.0,39484.0,0.095]
[1610172821780,0.55156075,39526.0,39498.0,0.00022256]
[1610172821980,0.454313,39524.0,39485.0,0.00022256]
[1610172822180,0.442413,39524.0,39485.0,0.00022256]
[1610172822381,0.09728,39526.0,39484.0,0.095]
[1610172822382,0.09728,39526.0,39499.0,0.00022259]
[1610172822579,0.09728,39526.0,39486.0,0.00022259]
[1610172822780,0.09728,39526.0,39500.0,0.00022259]
[1610172822979,0.2788,39525.0,39463.0,0.2887]
[1610172823180,5.54296389,39525.0,39471.0,0.07543]
[1610172823380,0.2822,39524.0,39471.0,0.07543]
[1610172823580,0.66721705,39519.0,39472.0,0.01025437]
[1610172823982,0.66721997,39520.0,39472.0,0.01025437]
[1610172824181,0.37113082,39518.0,39472.0,0.01025437]
[1610172824380,0.46440082,39518.0,39472.0,0.01025437]
[1610172824581,0.13632608,39502.0,39501.0,0.13632608]
[1610172825385,0.12402608,39502.0,39501.0,0.13632608]
[1610172827184,0.09923,39508.0,39501.0,0.13632608]
[1610172828384,0.08773,39508.0,39501.0,0.13632608]
[1610172828584,0.08773,39508.0,39507.0,0.13632608]
[1610172829385,0.08773,39508.0,39507.0,0.13655403]
[1610172829785,0.09327,39518.0,39507.0,0.13655403]
[1610172829986,0.2822,39524.0,39507.0,0.13655403]
[1610172830187,0.2822,39524.0,39508.0,0.00022793]
[1610172830589,0.2822,39524.0,39523.0,0.13632608]
[1610172830788,0.2788,39525.0,39523.0,0.13632608]
[1610172830990,0.09728,39526.0,39523.0,0.13655401]
[1610172831188,0.13632608,39535.0,39524.0,0.00022791]
[1610172831388,0.12442608,39535.0,39524.0,0.00022791]
[1610172831590,0.37095623,39533.0,39524.0,0.00022791]
[1610172831990,0.5477888,39536.0,39524.0,0.00022791]
[1610172832390,0.54780145,39535.0,39524.0,0.00022791]
[1610172832590,0.54780145,39535.0,39534.0,0.13632608]
[1610172832791,0.37095631,39535.0,39534.0,0.13632608]
[1610172833094,0.54800802,39535.0,39534.0,0.13632608]
[1610172833493,0.54823695,39537.0,39534.0,0.13632608]
[1610172834092,0.54824145,39536.0,39534.0,0.13632608]
[1610172834392,0.53674145,39536.0,39534.0,0.13632608]
[1610172834593,0.90766402,39536.0,39534.0,0.13632608]
[1610172834994,0.53674145,39536.0,39534.0,0.13632608]
[1610172835294,0.37094334,39535.0,39534.0,0.13632608]
[1610172835494,0.37094334,39535.0,39515.0,4.1612]
[1610172835797,0.6702221,39537.0,39515.0,4.1612]
[1610172835994,0.6702221,39537.0,39516.0,0.0002279]
[1610172836193,0.67042288,39533.0,39516.0,0.0002279]
[1610172836594,0.67055929,39531.0,39530.0,0.13632608]
[1610172836995,0.67055929,39531.0,39530.0,0.13478032]
[1610172837595,0.65805929,39531.0,39530.0,0.13478032]
[1610172837896,1.02905743,39531.0,39530.0,0.13478032]
[1610172838097,1.02905743,39531.0,39515.0,4.1612]
[1610172838298,0.65805929,39531.0,39515.0,4.1612]
[1610172838496,0.65805929,39531.0,39524.0,0.13632608]
[1610172838697,0.76213805,39532.0,39524.0,0.13632608]
[1610172839600,0.76234987,39530.0,39524.0,0.13632608]
[1610172840003,0.76236283,39531.0,39524.0,0.13632608]
[1610172840402,0.76236664,39529.0,39524.0,0.13632608]
[1610172840601,0.13632608,39525.0,39524.0,0.13632608]
[1610172840804,0.12452608,39525.0,39524.0,0.13632608]
[1610172841103,0.49554075,39525.0,39524.0,0.13632608]
[1610172842303,0.37101467,39525.0,39524.0,0.13632608]
[1610172842704,0.11877,39529.0,39524.0,0.13632608]
[1610172842903,0.11877,39529.0,39524.0,0.13655399]
[1610172843104,0.11877,39529.0,39525.0,0.00022789]
[1610172843307,0.55641403,39537.0,39525.0,0.00022789]
[1610172843505,0.11141,39538.0,39525.0,0.00022789]
[1610172843704,0.76216154,39541.0,39525.0,0.00022789]
[1610172843904,0.37091767,39537.0,39525.0,0.00022789]
[1610172844105,0.37089092,39541.0,39525.0,0.00022789]
[1610172844605,0.13632608,39542.0,39540.0,0.13632608]
[1610172845006,0.37090246,39541.0,39525.0,0.00022789]
[1610172845207,0.37090246,39541.0,39515.0,3.6804]
[1610172845407,0.37090246,39541.0,39526.0,0.00022788]
[1610172845808,0.37090246,39541.0,39516.0,0.00022788]
[1610172846007,0.37090246,39541.0,39527.0,0.00022788]
[1610172846208,0.37090246,39541.0,39517.0,0.00022788]
[1610172846609,1.22538866,39541.0,39531.0,0.13632608]
[1610172847008,0.85447881,39539.0,39531.0,0.13632608]
[1610172847411,0.85447881,39539.0,39531.0,0.1350083]
[1610172848612,0.13632608,39532.0,39531.0,0.1350083]
[1610172849011,0.5072759,39532.0,39531.0,0.1350083]
[1610172849211,0.5072759,39532.0,39531.0,0.13523617]
[1610172850013,0.4953759,39532.0,39531.0,0.13523617]
[1610172852315,0.95411694,39532.0,39531.0,0.13523617]
[1610172853114,0.94251694,39532.0,39531.0,0.13523617]
[1610172856220,0.93051694,39532.0,39531.0,0.13523617]
[1610172857722,1.78821787,39532.0,39531.0,0.13523617]
[1610172858023,2.09122896,39532.0,39531.0,0.13369035]
[1610172858824,2.46222503,39532.0,39531.0,0.00022787]
[1610172859224,2.84545121,39532.0,39531.0,0.00022787]
[1610172859424,2.84545121,39532.0,39489.0,0.01024582]
[1610172859625,4.4705403,39532.0,39531.0,0.00022794]
[1610172859824,4.4705403,39532.0,39514.0,0.01001793]
[1610172860032,0.46001689,39508.0,39490.0,0.01024622]
[1610172860225,0.46001689,39508.0,39490.0,0.00022794]
[1610172860427,0.07508,39521.0,39491.0,0.01001951]
[1610172860428,0.46026118,39505.0,39491.0,0.01001951]
[1610172860627,0.46026118,39505.0,39502.0,0.13632608]
[1610172860828,0.55229027,39504.0,39502.0,0.13632608]
[1610172861029,0.55229027,39504.0,39503.0,0.01024769]
[1610172861230,0.67495606,39506.0,39503.0,0.01024769]
[1610172861427,0.67495606,39506.0,39479.0,0.04017519]
[1610172861628,1.68753564,39504.0,39479.0,0.04017519]
[1610172862030,0.46029445,39494.0,39479.0,0.04017519]
[1610172862432,0.44849445,39494.0,39479.0,0.04017519]
[1610172862631,0.44849445,39494.0,39493.0,0.13632608]
[1610172862833,0.55219588,39497.0,39493.0,0.13632608]
[1610172863032,0.55219588,39497.0,39493.0,0.14657379]
[1610172863231,0.55219949,39498.0,39493.0,0.14657379]
[1610172863432,0.55219949,39498.0,39494.0,0.01024769]
[1610172864535,0.37112139,39503.0,39494.0,0.01024769]
[1610172864536,0.55203098,39499.0,39494.0,0.01024769]
[1610172864735,0.55202835,39500.0,39498.0,0.13632608]
[1610172865137,0.55202349,39501.0,39499.0,0.00022796]
[1610172865334,0.54042349,39501.0,39499.0,0.00022796]
[1610172865534,0.67460368,39505.0,39499.0,0.00022796]
[1610172865734,0.67460368,39505.0,39499.0,0.01024676]
[1610172865934,0.67454683,39511.0,39499.0,0.01024676]
[1610172866736,0.67454683,39511.0,39510.0,0.13632608]
[1610172866938,0.37105114,39512.0,39510.0,0.13632608]
[1610172867338,0.67457643,39511.0,39510.0,0.13632608]
[1610172867737,0.67457643,39511.0,39510.0,0.13655402]
[1610172868138,4.44639584,39511.0,39510.0,0.00022794]
[1610172868338,4.43479584,39511.0,39510.0,0.00022794]
[1610172868538,5.36257865,39511.0,39487.0,0.01024735]
[1610172868740,5.36257865,39511.0,39498.0,0.13632608]
[1610172868942,5.36257865,39511.0,39510.0,0.00022797]
[1610172869140,6.22131701,39511.0,39499.0,0.00022799]
[1610172869339,6.22131701,39511.0,39498.0,0.13632608]
[1610172869742,0.76668741,39502.0,39500.0,0.000228]
[1610172869942,0.88656741,39502.0,39499.0,0.000228]
[1610172870142,0.76675496,39501.0,39436.0,0.2769]
[1610172870542,0.37118646,39501.0,39500.0,0.00022801]
[1610172870742,0.37118646,39501.0,39472.0,0.13632608]
[1610172870743,0.79511254,39501.0,39472.0,0.13632608]
[1610172870943,0.2942,39500.0,39472.0,0.13632608]
[1610172871142,2.9186,39473.0,39451.0,0.08978]
[1610172871343,0.08198,39484.0,39451.0,0.08978]
[1610172871544,4.1864,39452.0,39451.0,0.08978]
[1610172871744,4.1864,39452.0,39437.0,0.08364]
[1610172871943,0.09233,39476.0,39437.0,0.08364]
[1610172872144,1.0,39464.0,39451.0,0.01025704]
[1610172872345,1.0,39464.0,39438.0,0.01003013]
[1610172872544,3.9592,39439.0,39403.0,0.08388866]
[1610172872745,3.9592,39439.0,39379.0,9.21788783]
[1610172872746,0.13632608,39423.0,39422.0,0.13632608]
[1610172873145,0.13632608,39423.0,39422.0,0.13655439]
[1610172873546,0.11757,39443.0,39422.0,0.13655439]
[1610172873547,3.9011,39440.0,39422.0,0.13632608]
[1610172873946,3.9011,39440.0,39422.0,0.13655441]
[1610172874147,3.9011,39440.0,39423.0,0.00022833]
[1610172874546,3.889,39440.0,39423.0,0.00022833]
[1610172874748,3.889,39440.0,39439.0,0.13632608]
[1610172876346,0.11757,39443.0,39439.0,0.13632608]
[1610172877748,0.10567,39443.0,39439.0,0.13632608]
[1610172878350,0.10584,39451.0,39439.0,0.13632608]
[1610172878550,3.8341,39460.0,39439.0,0.13632608]
[1610172878750,3.8341,39460.0,39428.0,3.298]
[1610172878751,0.13632608,39453.0,39452.0,0.13632608]
[1610172878949,0.23791608,39453.0,39452.0,0.13632608]
[1610172879353,0.10159,39453.0,39452.0,0.13632608]
[1610172880553,0.2814,39464.0,39452.0,0.13632608]
[1610172880754,0.2814,39464.0,39441.0,3.1185]
[1610172880755,0.2692,39464.0,39463.0,0.13632608]
[1610172881753,0.75891408,39489.0,39463.0,0.13632608]
[1610172881957,3.471,39490.0,39463.0,0.13632608]
[1610172882557,0.37132203,39489.0,39463.0,0.13632608]
[1610172882756,0.37132203,39489.0,39481.0,0.13632608]
[1610172882957,3.471,39490.0,39481.0,0.13632608]
[1610172883358,0.37137896,39488.0,39481.0,0.13477867]
[1610172883558,0.92846085,39489.0,39481.0,0.13477867]
[1610172883959,0.91666085,39489.0,39456.0,3.179]
[1610172884764,1.67516007,39489.0,39475.0,0.13632608]
[1610172884961,1.67516007,39489.0,39456.0,3.179]
[1610172885163,0.75855229,39487.0,39456.0,3.179]
[1610172885564,0.75839676,39485.0,39436.0,0.09655]
[1610172885765,3.4868,39478.0,39436.0,0.09655]
[1610172885965,0.37149905,39477.0,39437.0,0.00022858]
[1610172886464,0.37149905,39477.0,39432.0,3.245]
[1610172886764,0.37149905,39477.0,39456.0,0.13632608]
[1610172886964,0.35959905,39477.0,39456.0,0.13632608]
[1610172887164,0.9169536,39477.0,39456.0,0.13632608]
[1610172887368,0.3715697,39476.0,39456.0,0.13632608]
[1610172887567,0.7579795,39475.0,39456.0,0.13632608]
[1610172887968,0.75801288,39473.0,39456.0,0.13632608]
[1610172888470,0.6666913,39469.0,39456.0,0.13632608]
[1610172888669,0.7658013,39469.0,39456.0,0.13632608]
[1610172888871,0.13632608,39462.0,39461.0,0.13632608]
[1610172889771,0.70452608,39462.0,39432.0,3.245]
[1610172889974,0.69302608,39462.0,39381.0,1.5]
[1610172890170,0.69302608,39462.0,39410.0,3.8248]
[1610172890670,0.69302608,39462.0,39411.0,0.00022862]
[1610172890871,0.5682,39462.0,39452.0,0.13632608]
[1610172891072,0.54509164,39466.0,39452.0,0.13632608]
[1610172891271,0.2881,39461.0,39452.0,0.13632608]
[1610172891671,0.39399,39461.0,39452.0,0.13632608]
[1610172891873,0.39399,39461.0,35484.0,0.05076163]
[1610172892074,0.39399,39461.0,39373.0,1.5]
[1610172892274,2.8851,39451.0,39402.0,0.01037235]
[1610172892474,2.97803,39451.0,39403.0,0.5845]
[1610172892672,2.97803,39451.0,39403.0,0.67457]
[1610172892874,2.97803,39451.0,39438.0,0.13632608]
[1610172893075,0.08123,39451.0,39438.0,0.13632608]
[1610172893275,2.9086,39445.0,39438.0,0.13632608]
[1610172894878,0.13632608,39448.0,39444.0,0.13632608]
[1610172896179,0.12462608,39448.0,39403.0,0.09007]
[1610172896577,0.12462608,39448.0,39413.0,3.8462]
[1610172896778,0.08123,39451.0,39439.0,0.13632608]
[1610172897478,0.45364711,39458.0,39439.0,0.13632608]
[1610172897681,0.84750277,39461.0,39439.0,0.13632608]
[1610172898278,0.39399,39461.0,39439.0,0.13632608]
[1610172898779,0.13632608,39459.0,39458.0,0.13632608]
[1610172899180,0.12482608,39459.0,39458.0,0.13632608]
[1610172899781,0.12482608,39459.0,39458.0,0.13477787]
[1610172899981,0.12482608,39459.0,39414.0,0.03013282]
[1610172900383,0.12482608,39459.0,39414.0,0.04027579]
[1610172900580,0.12482608,39459.0,39414.0,0.04050441]
[1610172900980,0.39399,39461.0,39455.0,0.13632608]
[1610172901182,0.39399,39461.0,39414.0,0.04050441]
[1610172901585,0.39399,39461.0,39413.0,3.8462]
[1610172901786,0.39399,39461.0,39415.0,0.01037272]
[1610172901986,0.39399,39461.0,39413.0,3.8462]
[1610172901987,0.45338361,39460.0,39414.0,0.01037314]
[1610172902388,0.45336906,39459.0,39416.0,0.0103734]
[1610172902586,0.44066906,39459.0,39415.0,0.0103733]
[1610172902789,0.39399,39461.0,39417.0,0.01037305]
[1610172902987,0.39399,39461.0,39446.0,0.13632608]
[1610172904990,0.13632608,39447.0,39446.0,0.13632608]
[1610172905394,0.24861608,39447.0,39446.0,0.13632608]
[1610172905591,0.23671608,39447.0,39446.0,0.13632608]
[1610172905991,0.11229,39447.0,39446.0,0.13632608]
[1610172906391,0.10589,39461.0,39446.0,0.13632608]
[1610172906592,0.54435175,39463.0,39446.0,0.13632608]
[1610172906792,0.54445662,39468.0,39446.0,0.13632608]
[1610172906993,0.54445662,39468.0,39467.0,0.13632608]
[1610172907195,0.54432972,39474.0,39467.0,0.13632608]
[1610172907594,0.61736114,39478.0,39467.0,0.13632608]
[1610172907896,0.07287,39478.0,39467.0,0.13632608]
[1610172908093,0.54444487,39482.0,39467.0,0.13632608]
[1610172908293,0.54442531,39485.0,39467.0,0.13632608]
[1610172908695,4.76265277,39490.0,39467.0,0.13632608]
[1610172908894,0.66565277,39490.0,39489.0,0.13632608]
[1610172909095,0.665461,39494.0,39489.0,0.13632608]
[1610172909295,0.665461,39494.0,39492.0,3.5038]
[1610172909495,0.665461,39494.0,39489.0,0.13632608]
[1610172909695,0.09179,39497.0,39493.0,3.8033]
[1610172910696,0.09179,39497.0,39489.0,0.13632608]
[1610172911097,0.09179,39497.0,39496.0,0.13632608]
[1610172911698,0.07979,39497.0,39496.0,0.13632608]
[1610172911897,0.07979,39497.0,39496.0,0.13477929]
[1610172914100,0.07979,39497.0,39496.0,4.02017929]
[1610172914701,0.66721079,39508.0,39496.0,4.02017929]
[1610172914902,0.64361079,39508.0,39496.0,4.02017929]
[1610172915102,0.89450432,39513.0,39507.0,0.13632608]
[1610172915402,0.37119155,39512.0,39507.0,0.13632608]
[1610172915802,0.46096155,39512.0,39507.0,0.13632608]
[1610172916202,0.37119828,39511.0,39507.0,0.13632608]
[1610172916402,0.37119828,39511.0,39496.0,3.8854]
[1610172916602,0.37119828,39511.0,39450.0,0.07236]
[1610172916802,0.1556,39510.0,39450.0,0.07236]
[1610172917004,0.13632608,39490.0,39489.0,0.13632608]
[1610172917405,0.08341,39490.0,39489.0,0.13632608]
[1610172918007,0.09825198,39490.0,39489.0,0.13632608]
[1610172918408,0.08291,39490.0,39489.0,0.13632608]
[1610172918710,0.09825995,39490.0,39489.0,0.13632608]
[1610172919310,0.08291,39490.0,39489.0,0.13632608]
[1610172921210,0.07081,39490.0,39489.0,0.13632608]
[1610172921813,0.08617768,39490.0,39489.0,0.13632608]
[1610172922012,0.07081,39490.0,39489.0,0.13632608]
[1610172922413,0.0861805,39490.0,39489.0,0.13632608]
[1610172922813,0.07081,39490.0,39478.0,3.4304]
[1610172923016,0.07081,39490.0,39488.0,0.13632608]
[1610172923212,0.76110065,39498.0,39488.0,0.13632608]
[1610172923416,0.76111181,39497.0,39488.0,0.13632608]
[1610172923715,0.76132798,39495.0,39488.0,0.13632608]
[1610172923912,0.76132798,39495.0,39478.0,3.4304]
[1610172924113,0.76132798,39495.0,39450.0,0.11165]
[1610172924313,0.01537661,39484.0,39450.0,3.95115]
[1610172924513,0.4998,39480.0,39450.0,3.95115]
[1610172924713,0.01538239,39481.0,39450.0,0.11165]
[1610172924913,0.01538239,39481.0,39451.0,0.00022848]
[1610172925115,0.01538351,39479.0,39473.0,0.13632608]
[1610172925314,3.5434,39477.0,39473.0,0.13632608]
[1610172925513,0.01539072,39474.0,39473.0,0.13632608]
[1610172925916,0.01539072,39474.0,39451.0,3.6938]
[1610172926314,0.01539072,39474.0,39452.0,0.00022851]
[1610172926515,0.11106072,39474.0,39452.0,0.00022851]
[1610172927115,0.09567,39474.0,39473.0,0.13632608]
[1610172927317,0.08397,39474.0,39473.0,0.13632608]
[1610172928318,0.09937927,39474.0,39473.0,0.13632608]
[1610172929221,0.11479597,39474.0,39473.0,0.13632608]
[1610172929923,0.09937927,39474.0,39473.0,0.13632608]
[1610172930523,0.08687927,39474.0,39473.0,0.13632608]
[1610172930925,0.45830353,39474.0,39473.0,0.13632608]
[1610172931930,4.24560353,39474.0,39434.0,3.6352]
[1610172932133,5.24560353,39474.0,39434.0,3.6352]
[1610172932327,5.24560353,39474.0,39435.0,0.00022857]
[1610172932529,0.01543359,39456.0,39435.0,0.00022857]
[1610172932930,3.5359,39442.0,39435.0,0.00022857]
[1610172933128,3.5359,39442.0,39441.0,0.13632608]
[1610172933730,3.524,39442.0,39441.0,0.13655473]
[1610172935229,0.01543932,39446.0,39441.0,0.13655473]
[1610172935630,0.01543823,39447.0,39441.0,0.13655473]
[1610172935830,0.01543823,39447.0,39442.0,0.00022865]
[1610172936430,0.01543698,39451.0,39442.0,0.00022865]
[1610172936630,0.00393698,39451.0,39442.0,0.00022865]
[1610172937030,0.45865285,39453.0,39450.0,0.13632608]
[1610172937430,0.45863059,39455.0,39450.0,0.13632608]
[1610172937831,0.45863313,39454.0,39450.0,0.13632608]
[1610172938230,0.66737919,39456.0,39415.0,0.12003]
[1610172938231,0.45864033,39453.0,39415.0,0.12003]
[1610172938431,4.1755,39447.0,39407.0,3.7171]
[1610172938632,4.1755,39447.0,39416.0,0.01035295]
[1610172938833,4.1755,39447.0,39412.0,0.10234]
[1610172939032,4.1755,39447.0,39445.0,0.13632608]
[1610172939430,4.1755,39447.0,39412.0,0.10234]
[1610172939431,4.6341466,39447.0,39412.0,0.10234]
[1610172939630,4.6224466,39447.0,39412.0,0.10234]
[1610172939833,0.45866785,39445.0,39412.0,0.10234]
[1610172940031,0.45866785,39445.0,39413.0,0.01035456]
[1610172940233,0.45865676,39446.0,39413.0,0.01035456]
[1610172940733,4.6224088,39447.0,39413.0,0.01035456]
[1610172941132,4.1638,39447.0,39446.0,0.13632608]
[1610172941533,4.62236373,39447.0,39446.0,0.13632608]
[1610172942234,4.1638,39447.0,39446.0,0.13632608]
[1610172942434,0.45856592,39448.0,39446.0,0.13632608]
[1610172942835,0.44616592,39448.0,39446.0,0.13632608]
[1610172944438,4.12230263,39449.0,39446.0,0.13632608]
[1610172944838,0.92183541,39448.0,39446.0,0.13632608]
[1610172945036,0.13632608,39447.0,39446.0,0.13632608]
[1610172946040,0.12432608,39447.0,39446.0,0.13632608]
[1610172946442,0.12432608,39447.0,39425.0,3.8275]
[1610172946640,0.12432608,39447.0,39412.0,0.10234]
[1610172946840,3.4684,39443.0,39426.0,0.00022286]
[1610172947040,3.4684,39443.0,39413.0,0.00797057]
[1610172947241,3.4684,39443.0,39442.0,0.13632608]
[1610172947439,0.09979,39448.0,39442.0,0.13632608]
[1610172947641,2.8963,39446.0,39442.0,0.13632608]
[1610172949142,0.12422608,39443.0,39442.0,0.13632608]
[1610172950846,0.12422608,39443.0,39407.0,0.08516]
[1610172951246,0.54985158,39444.0,39430.0,0.13632608]
[1610172951446,0.54991166,39441.0,39408.0,0.00797134]
[1610172951648,3.7967,39409.0,39408.0,0.00797134]
[1610172951846,3.7967,39409.0,39408.0,0.00022288]
[1610172952246,3.7849,39409.0,39408.0,0.00022288]
[1610172952446,3.7849,39409.0,39371.0,0.03483682]
[1610172952648,0.07911,39419.0,39408.0,0.00022302]
[1610172953046,3.7175,39409.0,39377.0,0.10265]
[1610172953247,3.7175,39409.0,39401.0,0.13632608]
[1610172953446,0.0989,39411.0,39401.0,0.13632608]
[1610172953648,3.1561,39402.0,39401.0,0.13632608]
[1610172953848,3.27005,39402.0,39401.0,0.13632608]
[1610172954050,3.27005,39402.0,39401.0,0.13654917]
[1610172954449,3.27005,39402.0,39401.0,0.13632608]
[1610172955250,0.11395,39402.0,39401.0,0.13632608]
[1610172955450,0.10205,39402.0,39401.0,0.13632608]
[1610172955853,0.0989,39411.0,39401.0,0.13632608]
[1610172956252,0.5484551,39422.0,39401.0,0.13632608]
[1610172956652,0.63065204,39427.0,39401.0,0.13632608]
[1610172956852,0.63065204,39427.0,39402.0,0.00022299]
[1610172957054,0.08256,39427.0,39402.0,0.00022299]
[1610172957254,0.54806804,39431.0,39426.0,0.13632608]
[1610172957455,0.5479128,39432.0,39426.0,0.13632608]
[1610172957854,1.08476346,39435.0,39426.0,0.13632608]
[1610172957855,0.5136,39431.0,39426.0,0.13632608]
[1610172958054,0.54790432,39433.0,39426.0,0.13632608]
[1610172958254,0.07508,39434.0,39426.0,0.13632608]
[1610172958255,0.62295965,39434.0,39426.0,0.13632608]
[1610172958455,3.9722,39430.0,39426.0,0.13632608]
[1610172959658,3.9722,39430.0,39399.0,0.07528]
[1610172959659,0.07508,39434.0,39399.0,0.07528]
[1610172959858,3.5958,39423.0,39399.0,0.07528]
[1610172960058,0.09878,39426.0,39400.0,0.00022298]
[1610172960258,4.0366,39425.0,39400.0,0.00022298]
[1610172960659,4.0366,39425.0,39392.0,0.00022298]
[1610172960860,4.0366,39425.0,39391.0,0.07947]
[1610172961059,4.0366,39425.0,39393.0,0.587423]
[1610172961260,0.6464815,39426.0,39393.0,0.587423]
[1610172961261,0.09878,39426.0,39424.0,0.13632608]
[1610172961661,0.08668,39426.0,39424.0,0.13632608]
[1610172964864,0.07438,39426.0,39424.0,0.13632608]
[1610172965066,0.07508,39434.0,39424.0,0.13632608]
[1610172965265,0.2788,39435.0,39433.0,0.13632608]
[1610172965666,0.54686774,39445.0,39433.0,0.13632608]
[1610172966065,0.66836015,39448.0,39433.0,0.13632608]
[1610172966066,0.54682353,39448.0,39433.0,0.13632608]
[1610172966265,0.54682353,39448.0,39433.0,0.72972608]
[1610172966465,0.54673632,39452.0,39433.0,0.72972608]
[1610172966867,0.54672749,39455.0,39433.0,0.72972608]
[1610172967067,0.54672749,39455.0,39433.0,0.13632608]
[1610172967269,0.54667082,39456.0,39454.0,0.13632608]
[1610172967667,0.54669136,39455.0,39454.0,0.13632608]
[1610172968067,0.54668289,39456.0,39454.0,0.13632608]
[1610172968267,0.11435,39455.0,39454.0,0.13632608]
[1610172968968,0.11435,39455.0,39454.0,0.1347776]
[1610172969971,0.4860178,39455.0,39454.0,0.1347776]
[1610172971171,0.61014388,39455.0,39454.0,0.1347776]
[1610172971372,1.15224388,39455.0,39454.0,0.1347776]
[1610172971572,1.82101165,39455.0,39424.0,3.9529]
[1610172972173,0.00775069,39444.0,39424.0,3.9529]
[1610172972375,0.56497069,39444.0,39424.0,3.9529]
[1610172972575,0.00775371,39441.0,39424.0,3.9529]
[1610172972974,0.00775393,39440.0,39424.0,3.9529]
[1610172973174,0.14408001,39440.0,39434.0,0.13632608]
[1610172973375,0.00775781,39438.0,39434.0,0.13632608]
[1610172973775,0.00775774,39437.0,39434.0,0.13632608]
[1610172974175,0.00775835,39436.0,39434.0,0.13632608]
[1610172974374,0.45264824,39438.0,39434.0,0.13632608]
[1610172974575,0.80613718,39440.0,39434.0,0.13632608]
[1610172974877,0.6698111,39440.0,39434.0,0.13632608]
[1610172975076,0.37179911,39439.0,39434.0,3.85232608]
[1610172975275,0.37179911,39439.0,39438.0,0.13632608]
[1610172975476,1.04181719,39443.0,39438.0,0.13632608]
[1610172975877,0.10542,39444.0,39438.0,0.13632608]
[1610172977381,0.10542,39444.0,39443.0,0.13632608]
[1610172977581,0.67065138,39451.0,39443.0,0.13632608]
[1610172977979,0.67065672,39450.0,39443.0,0.13632608]
[1610172978779,0.67097616,39449.0,39443.0,0.13632608]
[1610172979280,0.67097355,39448.0,39425.0,3.6898]
[1610172979681,0.67139262,39447.0,39426.0,0.0002229]
[1610172979981,1.04311635,39447.0,39426.0,0.0002229]
[1610172980179,1.14431635,39447.0,39426.0,0.0002229]
[1610172980481,0.67184207,39446.0,39426.0,0.0002229]
[1610172980881,0.37171953,39445.0,39426.0,0.0002229]
[1610172981280,0.37171953,39445.0,39444.0,0.13632608]
[1610172981481,0.37170218,39446.0,39444.0,0.13632608]
[1610172982282,0.1012,39447.0,39444.0,0.13632608]